bitfinex/quotes_ETHUSD_20250414
["timestamp","ask_amount","ask_price","bid_price","bid_amount"]
[1744599795888,9.79689,1633.2,1632.8,6.661115]
[1744599796088,4.89835,1633.2,1632.8,11.560495]
[1744599796691,3.0,1633.2,1632.9,4.89921]
[1744599796914,3.0,1633.2,1632.9,9.79834]
[1744599797215,7.89839,1633.2,1632.9,4.89913]
[1744599797420,14.04471293,1633.4,1633.0,4.89884]
[1744599798715,9.14672293,1633.4,1633.0,4.89884]
[1744599799019,14.04477293,1633.4,1633.0,4.89881]
[1744599799817,4.89701,1633.7,1633.4,4.89775]
[1744599799998,4.89701,1633.7,1633.4,5.877308]
[1744599800197,5.66928,1633.8,1633.4,5.877308]
[1744599800406,3.7727,1633.8,1633.5,4.89738]
[1744599800985,0.7727,1633.8,1633.5,4.89738]
[1744599801200,0.7727,1633.8,1633.5,4.89729]
[1744599801401,3.7727,1633.8,1633.5,4.89729]
[1744599801597,13.47069,1634.0,1633.5,1.8377578]
[1744599801816,6.17,1634.1,1633.5,1.8377578]
[1744599801817,4.89547,1634.2,1633.8,4.89637]
[1744599802007,4.89627,1633.9,1633.6,4.89712]
[1744599802210,4.89793,1633.4,1633.0,4.89893]
[1744599802407,4.89809,1633.3,1632.9,4.8991]
[1744599802632,4.89809,1633.3,1632.9,5.46504]
[1744599802798,3.0,1633.3,1633.0,4.8987]
[1744599803132,3.0,1633.3,1633.1,4.89864]
[1744599803438,9.79513,1633.5,1633.1,4.89848]
[1744599803640,4.89748,1633.5,1633.1,4.89848]
[1744599803826,4.89748,1633.5,1633.1,5.878219]
[1744599804203,3.0,1633.5,1633.2,4.89835]
[1744599804398,5.4469,1633.7,1633.3,4.89794]
[1744599804641,3.0,1633.6,1633.3,9.79582]
[1744599804956,4.8969,1633.7,1633.4,4.89771]
[1744599805237,3.0,1633.7,1633.4,4.89771]
[1744599805710,3.0,1633.7,1633.4,5.55726463]
[1744599807213,7.89686,1633.7,1633.4,0.65955463]
[1744599807413,4.89728,1633.6,1633.2,4.89824]
[1744599807613,4.89728,1633.6,1633.3,4.89803]
[1744599807809,7.89687,1633.7,1633.3,4.95908958]
[1744599808009,3.0,1633.7,1633.4,4.89775]
[1744599808245,7.89704,1633.7,1633.3,4.89805]
[1744599808546,7.89704,1633.7,1633.3,9.796]
[1744599809445,5.66929,1633.8,1633.3,9.796]
[1744599809446,5.66929,1633.8,1633.4,9.79538]
[1744599809644,5.66929,1633.8,1633.4,9.85659598]
[1744599809814,5.66929,1633.8,1633.4,9.79538]
[1744599810016,4.89687,1633.7,1633.4,4.89764]
[1744599810211,9.79398,1633.7,1633.3,5.87765]
[1744599810611,4.89721,1633.6,1633.3,5.87765]
[1744599810816,4.89721,1633.6,1633.3,4.89805]
[1744599811020,4.89807,1633.3,1633.1,0.7603]
[1744599811217,4.89807,1633.3,1632.9,5.46494]
[1744599811444,4.89807,1633.3,1632.9,10.36403]
[1744599811647,4.8978,1633.4,1633.0,4.96017083]
[1744599811855,3.0,1633.3,1633.1,4.89864]
[1744599812055,3.0,1633.5,1633.2,5.65851]
[1744599812214,4.89786,1633.4,1633.0,5.65915]
[1744599812539,4.89786,1633.4,1633.1,4.89863]
[1744599812972,4.89719,1633.6,1633.2,4.89806]
[1744599813149,8.66963,1633.7,1633.3,4.89789]
[1744599813350,3.0,1633.7,1633.4,4.8977]
[1744599813721,3.0,1633.7,1633.4,9.7953]
[1744599813918,4.89715,1633.6,1633.1,0.815]
[1744599814146,4.89839,1633.2,1632.9,0.815]
[1744599814317,4.8981,1633.3,1632.9,5.71425]
[1744599814533,4.89842,1633.2,1632.9,5.71425]
[1744599814932,4.8981,1633.3,1632.9,10.61339]
[1744599815147,9.79639,1633.3,1632.9,5.71414]
[1744599815458,10.776029,1633.3,1632.9,5.71414]
[1744599816260,4.8984,1633.2,1632.9,5.71414]
[1744599817269,4.8981,1633.3,1632.9,10.67445459]
[1744599817573,9.79574,1633.4,1633.0,4.89875]
[1744599818574,9.27928,1633.5,1633.0,4.89875]
[1744599818755,14.17692,1633.5,1633.1,4.89851]
[1744599819472,4.89782,1633.4,1633.0,5.470125]
[1744599819966,9.79578,1633.4,1633.0,5.470125]
[1744599820176,4.89858,1633.2,1632.6,0.815]
[1744599820371,4.89808,1633.3,1632.6,5.71502]
[1744599820573,10.803,1633.4,1632.5,7.90041]
[1744599820574,15.70079,1633.4,1633.0,5.7139]
[1744599820874,10.803,1633.4,1633.0,5.71384]
[1744599821046,3.0,1633.4,1633.2,4.89833]
[1744599821473,3.0,1633.4,1633.1,4.9598359]
[1744599821767,3.0,1633.4,1633.1,4.89861]
[1744599822767,7.89777,1633.4,1633.0,5.71392]
[1744599822975,4.89806,1633.3,1633.0,0.815]
[1744599823376,5.72872,1633.7,1633.1,4.95988151]
[1744599823565,12.69962,1633.8,1633.4,9.79526]
[1744599823767,12.69962,1633.8,1633.4,4.89763]
[1744599824073,4.89717,1633.6,1633.2,5.71332]
[1744599824440,4.89717,1633.6,1633.2,10.61151]
[1744599825578,4.89717,1633.6,1633.2,5.71319]
[1744599825747,5.876575,1633.6,1633.2,5.71319]
[1744599825947,4.89717,1633.6,1633.2,5.71319]
[1744599826383,4.8982,1633.3,1632.9,4.89915]
[1744599826671,4.89837,1633.2,1632.9,4.89915]
[1744599826845,4.8982,1633.3,1632.9,4.89915]
[1744599827366,4.8982,1633.3,1632.9,5.960467]
[1744599827567,4.8982,1633.3,1632.9,10.859557]
[1744599827877,4.8982,1633.3,1633.0,4.8989]
[1744599828178,4.89778,1633.4,1633.0,4.8989]
[1744599828374,9.79572,1633.4,1633.0,4.8989]
[1744599828578,4.89778,1633.4,1633.0,4.8989]
[1744599828783,4.89815,1633.3,1632.9,4.89909]
[1744599829680,4.89815,1633.3,1632.9,9.79817]
[1744599829876,4.89815,1633.3,1632.9,9.79816]
[1744599830380,4.89815,1633.3,1633.0,4.89892]
[1744599830578,9.79641,1633.3,1632.9,4.89908]
[1744599830784,4.89815,1633.3,1632.9,10.859579]
[1744599831156,4.89815,1633.3,1633.0,4.8989]
[1744599831361,4.89815,1633.3,1632.8,5.71451]
[1744599831362,3.0,1633.2,1632.8,5.71451]
[1744599831548,7.89847,1633.2,1632.8,10.61402]
[1744599831765,12.79701,1633.2,1632.8,6.775912]
[1744599832077,7.89847,1633.2,1632.8,11.675302]
[1744599832272,7.89847,1633.2,1632.8,6.775792]
[1744599832469,12.797,1633.2,1632.8,6.775792]
[1744599832670,5.69807,1633.1,1632.7,4.89984]
[1744599833092,5.69807,1633.1,1632.7,9.79952]
[1744599833493,0.7993,1633.1,1632.8,4.8995]
[1744599833663,4.89839,1633.2,1632.8,4.8995]
[1744599834602,4.89839,1633.2,1632.8,9.79891]
[1744599834788,0.7993,1633.3,1633.0,4.89872]
[1744599834966,0.7993,1633.3,1633.0,9.79754]
[1744599835466,0.7993,1633.3,1633.0,4.89872]
[1744599835901,4.90899442,1633.3,1633.0,4.89872]
[1744599836203,9.80713442,1633.3,1633.0,4.89872]
[1744599836972,4.90899442,1633.3,1633.0,4.89872]
[1744599837607,3.0,1633.2,1632.9,5.68301]
[1744599837900,7.89847,1633.2,1632.9,5.68301]
[1744599838303,7.89847,1633.2,1632.9,0.7838]
[1744599838673,3.0,1633.2,1632.9,5.68286]
[1744599839183,3.0,1633.2,1632.9,10.58201]
[1744599839393,4.10969442,1633.3,1632.9,0.7838]
[1744599839600,4.10969442,1633.3,1633.1,4.89845]
[1744599839799,3.0,1633.4,1633.2,10.58024]
[1744599840318,4.10969442,1633.5,1633.4,4.89775]
[1744599841367,4.10969442,1633.5,1633.3,4.89805]
[1744599841805,4.10969442,1633.5,1633.3,9.79594]
[1744599841998,4.10969442,1633.5,1633.4,4.89775]
[1744599842307,4.10969442,1633.5,1633.2,10.58031]
[1744599842606,4.10969442,1633.5,1633.3,9.79596]
[1744599842809,4.10969442,1633.5,1633.3,4.89793]
[1744599843000,10.59326,1633.7,1633.3,4.89793]
[1744599843310,4.89726,1633.6,1633.2,5.68211]
[1744599843505,4.89726,1633.6,1633.2,0.7838]
[1744599843686,4.89776,1633.4,1633.1,4.89862]
[1744599844327,4.89768,1633.5,1633.1,9.79711]
[1744599845711,10.34443,1633.6,1633.2,4.89823]
[1744599846003,10.34452,1633.6,1633.2,4.89823]
[1744599846209,4.8975,1633.5,1633.2,4.89823]
[1744599846589,9.79516,1633.5,1633.1,4.89849]
[1744599846910,4.8975,1633.5,1633.1,6.01344]
[1744599847275,4.8975,1633.5,1633.1,6.07466541]
[1744599847479,4.8975,1633.5,1633.1,6.01344]
[1744599847807,4.8975,1633.5,1633.2,4.89824]
[1744599848199,10.34454,1633.6,1633.2,4.89824]
[1744599848402,5.4472,1633.6,1633.2,4.89824]
[1744599848710,5.4472,1633.6,1633.3,4.89804]
[1744599848906,5.4472,1633.6,1633.2,4.89824]
[1744599849111,10.34455,1633.6,1633.2,4.89824]
[1744599849311,11.86990444,1633.6,1633.2,4.89824]
[1744599849514,6.97255444,1633.6,1633.2,9.79647]
[1744599849681,11.86994444,1633.6,1633.2,4.89823]
[1744599849992,1.52535444,1633.6,1633.3,4.89791]
[1744599850185,9.80585442,1633.7,1633.3,4.89791]
[1744599850391,4.89722,1633.6,1633.2,4.89835]
[1744599850595,4.89722,1633.6,1633.2,9.79656]
[1744599851888,9.79459,1633.6,1633.2,4.89821]
[1744599852321,4.89722,1633.6,1633.2,4.89821]
[1744599852525,4.89722,1633.6,1633.2,5.499526]
[1744599853024,3.55,1633.6,1633.1,1.11495]
[1744599853317,4.89777,1633.4,1633.1,4.8986]
[1744599853723,4.89768,1633.5,1633.1,4.8986]
[1744599854024,4.89768,1633.5,1633.0,4.89867]
[1744599854334,4.89878,1633.1,1632.7,5.6768]
[1744599854691,5.71558,1633.1,1632.7,5.6768]
[1744599854898,4.89946,1632.9,1632.4,5.67775]
[1744599855096,4.89946,1632.9,1632.5,4.90044]
[1744599855412,4.89899,1633.0,1632.6,9.80002]
[1744599856118,8.7155,1633.1,1632.7,4.8997]
[1744599856119,3.8168,1633.1,1632.7,4.8997]
[1744599856421,4.89866,1633.1,1632.8,0.777]
[1744599856604,4.89866,1633.1,1632.6,4.90013]
[1744599856605,4.89896,1633.0,1632.6,4.90013]
[1744599856805,4.89866,1633.1,1632.7,4.89974]
[1744599856995,3.0,1633.1,1632.8,4.89955]
[1744599857195,3.0,1633.1,1632.9,10.57522]
[1744599857396,3.0,1633.1,1632.9,5.67611]
[1744599857792,3.0,1633.1,1632.7,4.89983]
[1744599857994,3.0,1633.1,1632.7,0.777]
[1744599858230,0.8168,1632.9,1632.4,0.777]
[1744599858396,5.71609,1632.9,1632.4,5.67774]
[1744599858597,4.89984,1632.8,1632.4,10.57835]
[1744599858794,4.89984,1632.8,1632.5,4.90043]
[1744599858995,4.89984,1632.8,1632.4,2.613535]
[1744599859224,4.89986,1632.7,1632.4,2.613535]
[1744599859828,9.79968,1632.8,1632.4,7.514285]
[1744599860324,4.89984,1632.8,1632.4,7.514285]
[1744599860824,0.7504,1632.6,1632.2,0.005]
[1744599861002,5.65145,1632.3,1632.2,0.005]
[1744599864232,4.90088,1632.4,1632.2,0.005]
[1744599864435,4.90105,1632.3,1632.2,0.005]
[1744599867310,5.881243,1632.3,1632.2,0.005]
[1744599867800,8.881243,1632.3,1632.2,0.005]
[1744599868933,9.431243,1632.3,1632.2,0.005]
[1744599869138,10.181643,1632.3,1632.2,0.005]
[1744599874074,16.351643,1632.3,1632.2,0.005]
[1744599874393,9.26956,1632.2,1632.1,0.00708855]
[1744599874574,9.27016,1632.0,1631.9,0.005]
[1744599874873,17.04416,1632.0,1631.9,0.005]
[1744599875523,16.22596,1632.0,1631.9,0.005]
[1744599876068,15.67596,1632.0,1631.9,0.005]
[1744599876365,7.774,1632.0,1631.9,0.005]
[1744599877289,7.774,1632.0,1631.9,4.90726]
[1744599877453,11.07106,1632.3,1631.9,11.564485]
[1744599877657,11.07106,1632.3,1631.9,10.58352]
[1744599878359,7.775,1632.6,1632.2,4.90121]
[1744599878536,7.775,1632.6,1632.4,0.774]
[1744599878741,7.775,1632.6,1632.4,5.67465]
[1744599880874,11.06928,1632.9,1632.5,4.90045]
[1744599881041,4.89896,1633.0,1632.6,4.9]
[1744599881241,11.38781981,1633.3,1632.8,4.89927]
[1744599881242,4.89839,1633.2,1632.8,4.89927]
[1744599881475,3.0,1633.1,1632.8,4.89927]
[1744599881779,4.89839,1633.2,1632.8,4.89927]
[1744599881976,3.0,1633.1,1632.8,4.89927]
[1744599882178,4.89839,1633.2,1632.8,4.89927]
[1744599882382,3.0,1633.1,1632.8,5.466597]
[1744599883090,19.66126,1633.3,1633.1,4.8986]
[1744599883091,7.775,1633.3,1633.1,4.8986]
[1744599883251,7.775,1633.3,1633.1,0.774]
[1744599883579,13.49027,1633.7,1633.3,4.89785]
[1744599883779,13.49027,1633.7,1633.3,10.285515]
[1744599883951,7.775,1633.7,1633.4,0.774]
[1744599884151,7.775,1633.7,1633.5,4.89724]
[1744599885279,7.775,1633.7,1633.5,9.79452]
[1744599886001,7.775,1633.7,1633.5,4.89724]
[1744599886202,7.775,1633.7,1633.4,5.67174]
[1744599886398,9.00598442,1633.9,1633.4,5.67174]
[1744599886399,3.55,1633.9,1633.4,0.774]
[1744599886701,4.89718,1633.6,1633.4,0.774]
[1744599886877,4.89657,1633.8,1633.4,5.67164]
[1744599887084,7.89628,1633.9,1633.5,4.89734]
[1744599887660,4.89677,1633.8,1633.4,5.67164]
[1744599887964,7.89692,1633.7,1633.4,0.774]
[1744599888165,12.79401,1633.7,1633.4,0.774]
[1744599888375,7.89692,1633.7,1633.4,0.774]
[1744599889087,12.79398,1633.7,1633.4,0.774]
[1744599889251,7.89692,1633.7,1633.4,0.774]
[1744599889450,7.89692,1633.7,1633.4,1.341198]
[1744599889757,4.89718,1633.6,1633.4,1.341198]
[1744599890087,4.89718,1633.6,1633.2,5.68848]
[1744599890286,4.8978,1633.4,1633.2,0.7902]
[1744599890583,4.89748,1633.5,1633.2,0.7902]
[1744599890957,9.79454,1633.6,1633.2,5.68854]
[1744599891157,4.89747,1633.5,1633.2,5.68854]
[1744599891391,4.89718,1633.6,1633.3,0.568854]
[1744599892475,4.89746,1633.5,1633.3,0.568854]
[1744599892775,4.89718,1633.6,1633.3,0.568854]
[1744599892979,7.89689,1633.7,1633.3,5.466794]
[1744599893191,4.89717,1633.6,1633.3,0.568854]
[1744599893871,9.79452,1633.6,1633.3,0.568854]
[1744599894397,4.89753,1633.5,1633.3,0.568854]
[1744599894603,4.89753,1633.5,1633.2,0.7902]
[1744599895804,4.89717,1633.6,1633.2,5.68855]
[1744599896305,9.79452,1633.6,1633.2,5.68855]
[1744599896806,4.89717,1633.6,1633.2,10.58673]
[1744599897105,9.79454,1633.6,1633.2,5.68838]
[1744599897273,4.89746,1633.5,1633.3,0.568838]
[1744599897671,9.79512,1633.5,1633.3,0.568838]
[1744599897900,4.89746,1633.5,1633.2,0.7902]
[1744599898177,4.89746,1633.5,1633.2,5.68851]
[1744599899309,4.8972,1633.6,1633.2,5.68851]
[1744599899475,4.8972,1633.6,1633.2,5.68838]
[1744599899675,4.89748,1633.5,1633.2,5.68838]
[1744599899875,4.89748,1633.5,1633.3,0.568838]
[1744599900104,9.79453,1633.6,1633.3,0.568838]
[1744599900307,4.89746,1633.5,1633.3,0.568838]
[1744599900908,4.89746,1633.5,1633.2,0.7902]
[1744599901577,4.89776,1633.4,1633.2,0.7902]
[1744599901979,5.70891,1633.5,1633.0,0.7902]
[1744599902202,4.89785,1633.4,1633.0,0.7902]
[1744599902481,4.89785,1633.4,1633.0,5.68886]
[1744599902690,4.89785,1633.4,1633.1,5.467536]
[1744599903289,4.89785,1633.4,1633.1,0.568886]
[1744599903612,4.89833,1633.3,1633.0,0.7902]
[1744599905034,4.89727,1633.6,1633.2,4.89833]
[1744599905477,4.8975,1633.5,1633.2,4.89833]
[1744599905985,4.89727,1633.6,1633.3,4.89805]
[1744599906187,12.64677,1633.8,1633.4,5.7076]
[1744599906383,12.64677,1633.8,1633.4,10.6052]
[1744599906715,3.0,1633.7,1633.4,10.6052]
[1744599906925,3.0,1633.7,1633.5,4.89732]
[1744599907625,4.89596,1634.0,1633.7,4.89685]
[1744599907926,3.0,1633.9,1633.7,5.70695]
[1744599908296,7.89626,1633.9,1633.7,0.8101]
[1744599908496,3.0,1633.9,1633.7,0.8101]
[1744599908927,7.89626,1633.9,1633.7,0.8101]
[1744599909126,4.89599,1634.0,1633.7,0.8101]
[1744599909327,17.54099,1634.2,1633.8,4.89652]
[1744599909529,4.89567,1634.1,1633.7,6.28377464]
[1744599909830,4.89677,1633.8,1633.5,0.8101]
[1744599910192,4.89626,1633.9,1633.5,5.70753]
[1744599910397,6.21279,1634.0,1633.6,4.89705]
[1744599910830,4.89599,1634.0,1633.7,4.89679]
[1744599911054,4.8957,1634.1,1633.7,9.79348]
[1744599911203,7.8957,1634.1,1633.7,4.89669]
[1744599911529,4.89602,1634.0,1633.6,4.89712]
[1744599911830,4.89602,1634.0,1633.6,4.89698]
[1744599912251,10.026508,1634.1,1633.7,9.79359]
[1744599912531,10.026508,1634.1,1633.7,4.89674]
[1744599912700,10.026508,1634.1,1633.7,4.95794295]
[1744599913096,10.026508,1634.1,1633.6,4.89713]
[1744599913322,10.7949208,1634.0,1633.6,4.89713]
[1744599913825,5.8987608,1634.0,1633.6,4.89713]
[1744599914025,5.8987608,1634.0,1633.6,9.85536455]
[1744599914631,5.8987608,1634.0,1633.7,4.89684]
[1744599915127,4.89736,1633.6,1633.4,0.8101]
[1744599915313,9.79471,1633.6,1633.4,0.8101]
[1744599915520,7.89696,1633.7,1633.4,0.8101]
[1744599916429,1.90667608,1633.9,1633.4,5.70783]
[1744599916430,11.14941608,1633.9,1633.4,5.70783]
[1744599916618,3.0,1633.8,1633.5,4.8973]
[1744599917334,4.89688,1633.7,1633.4,5.70775]
[1744599917540,4.89716,1633.6,1633.4,0.8101]
[1744599917738,4.89776,1633.4,1633.2,0.8101]
[1744599918033,4.89811,1633.3,1633.0,5.70893]
[1744599918240,4.89776,1633.4,1633.0,5.70901]
[1744599918535,5.6643,1633.5,1633.1,4.89864]
[1744599918705,11.12838,1633.5,1633.1,4.89864]
[1744599919630,5.46393,1633.5,1633.1,9.79715]
[1744599919830,4.89718,1633.6,1633.2,4.95942705]
[1744599920042,13.41897,1633.7,1633.3,0.7923]
[1744599920344,4.89753,1633.5,1633.3,0.7923]
[1744599921943,4.89717,1633.6,1633.3,0.7923]
[1744599923316,4.89717,1633.6,1633.3,5.69034]
[1744599923530,4.89747,1633.5,1633.3,0.7923]
[1744599925132,11.626046,1633.6,1633.3,0.7923]
[1744599925543,4.89746,1633.5,1633.3,0.7923]
[1744599925778,9.79509,1633.5,1633.1,5.69079]
[1744599925953,4.89746,1633.5,1633.1,10.58928]
[1744599926151,4.89746,1633.5,1633.2,4.8983]
[1744599928168,6.728806,1633.6,1633.2,4.8983]
[1744599928357,6.728806,1633.6,1633.2,9.79652]
[1744599928557,6.728806,1633.6,1633.2,9.85774106]
[1744599928775,4.89719,1633.6,1633.2,9.85774106]
[1744599928945,4.89719,1633.6,1633.2,9.79652]
[1744599929274,4.88379442,1633.9,1633.5,4.89718]
[1744599929475,4.10969442,1633.9,1633.6,0.7923]
[1744599929681,4.10969442,1633.9,1633.8,4.89656]
[1744599929843,4.10969442,1633.9,1633.8,6.67431945]
[1744599930868,4.10969442,1634.0,1633.9,4.89626]
[1744599931051,0.10979442,1634.0,1633.9,8.68856]
[1744599931363,5.32085977,1634.4,1634.3,5.68736]
[1744599931555,5.32085977,1634.4,1634.3,6.74562]
[1744599931757,5.32085977,1634.4,1634.3,7.11014009]
[1744599934157,0.02,1634.4,1634.3,7.11014009]
[1744599934948,0.02,1634.4,1634.3,13.23647157]
[1744599937086,0.02,1634.4,1634.3,2.21508009]
[1744599937282,0.02,1634.4,1634.3,1.15682009]
[1744599938475,0.02,1634.4,1634.3,6.05188009]
[1744599939580,0.02,1634.4,1634.3,6.11305913]
[1744599942687,0.02,1634.4,1634.3,6.05188009]
[1744599943911,0.02,1634.4,1634.3,6.11305917]
[1744599944094,0.02,1634.4,1634.3,7.92520201]
[1744599944427,4.91476,1634.4,1634.3,0.36452009]
[1744599944823,4.89506,1634.3,1633.8,4.89654]
[1744599945142,5.66953,1633.8,1633.5,0.7717]
[1744599945305,4.89699,1633.7,1633.3,5.66974]
[1744599945637,9.79412,1633.7,1633.3,4.89804]
[1744599945801,4.89699,1633.7,1633.3,6.22125902]
[1744599946436,4.89758,1633.5,1633.2,7.722]
[1744599946642,4.89758,1633.5,1633.1,6.729168]
[1744599946643,4.89818,1633.3,1632.9,5.6709]
[1744599946839,5.67057,1633.4,1633.0,4.89893]
[1744599947333,3.0,1633.5,1633.2,4.89823]
[1744599947536,7.89747,1633.5,1633.1,4.89865]
[1744599947738,7.89747,1633.5,1633.1,0.979757]
[1744599948032,4.89789,1633.4,1633.0,4.89892]
[1744599949961,4.89862,1633.2,1632.8,7.722]
[1744599950250,4.89883,1633.1,1632.7,5.71137]
[1744599950419,4.89883,1633.1,1632.7,0.8117]
[1744599950600,4.89981,1632.8,1632.4,12.62368]
[1744599950808,4.89981,1632.8,1632.4,7.723]
[1744599951006,9.80013,1632.7,1632.3,5.71248]
[1744599951206,9.80013,1632.7,1632.3,4.90078]
[1744599951655,5.72921,1632.6,1632.2,0.2896]
[1744599951855,4.90066,1632.5,1632.2,0.2896]
[1744599952176,4.401921,1632.6,1632.4,4.90071]
[1744599952340,3.829,1632.6,1632.3,4.90102]
[1744599952536,0.829,1632.8,1632.4,4.90062]
[1744599952726,0.829,1633.0,1632.7,4.89963]
[1744599952925,0.829,1633.0,1632.7,9.7993]
[1744599953166,7.702,1633.2,1632.9,4.89923]
[1744599953345,3.0,1633.1,1632.9,4.89923]
[1744599953539,7.702,1633.2,1632.9,4.8991]
[1744599953743,7.702,1633.2,1633.0,4.89883]
[1744599954271,7.702,1633.2,1633.0,4.96000947]
[1744599954456,7.702,1633.2,1633.1,5.39465095]
[1744599954658,7.702,1633.2,1633.1,0.78535808]
[1744599954827,4.89789,1633.4,1633.1,0.78535808]
[1744599955027,5.72648,1633.5,1633.1,0.84658736]
[1744599955227,5.72648,1633.5,1633.1,5.68383808]
[1744599955228,0.829,1633.5,1633.1,5.68383808]
[1744599955426,3.829,1633.5,1633.2,5.46670381]
[1744599955627,4.89776,1633.4,1633.2,0.56838381]
[1744599955879,3.829,1633.5,1633.3,0.2879551]
[1744599956172,3.829,1633.5,1633.1,4.89844]
[1744599956332,4.89792,1633.4,1633.0,4.89893]
[1744599956674,9.79591,1633.4,1633.2,0.28692653]
[1744599956871,4.89792,1633.4,1633.1,0.28739986]
[1744599957070,8.72657,1633.5,1633.2,0.28688102]
[1744599957304,8.72657,1633.5,1633.1,4.89853]
[1744599957599,4.89781,1633.4,1633.2,0.77673402]
[1744599957896,4.89781,1633.4,1633.0,4.89895]
[1744599958200,4.89781,1633.4,1633.1,0.28735435]
[1744599959780,13.62423,1633.5,1633.1,5.18599435]
[1744599959983,4.89779,1633.4,1633.1,0.28735435]
[1744599960370,9.7958,1633.4,1633.1,0.28735435]
[1744599960571,4.89779,1633.4,1633.1,0.28735435]
[1744599961295,8.72646,1633.5,1633.1,5.70446579]
[1744599961491,8.72646,1633.5,1633.1,10.60299579]
[1744599961692,3.829,1633.5,1633.2,4.89822]
[1744599962069,8.72646,1633.5,1633.3,0.2858163]
[1744599962272,4.89857,1633.2,1632.8,5.71124]
[1744599962473,8.72646,1633.5,1632.9,10.65751765]
[1744599962474,4.89814,1633.3,1632.9,10.65751765]
[1744599962674,3.0,1633.4,1633.2,4.89832]
[1744599962973,3.829,1633.5,1633.3,0.2858163]
[1744599963377,8.72647,1633.5,1633.3,0.2858163]
[1744599963689,8.72647,1633.5,1633.1,4.89863]
[1744599963897,4.898,1633.4,1633.2,0.28586579]
[1744599964094,4.898,1633.4,1633.0,4.89879]
[1744599964277,9.79597,1633.4,1633.1,0.28633908]
[1744599964704,4.89797,1633.4,1633.1,0.28633908]
[1744599965909,8.72647,1633.5,1633.1,0.28633908]
[1744599965910,4.89806,1633.3,1633.1,0.28633908]
[1744599966071,9.79636,1633.3,1632.9,4.89923]
[1744599966271,4.89806,1633.3,1633.0,0.28681244]
[1744599966493,4.89778,1633.4,1633.0,5.18566244]
[1744599966671,9.79574,1633.4,1633.0,5.18566244]
[1744599966873,4.89838,1633.2,1633.0,0.28681244]
[1744599967077,4.379,1633.1,1632.5,4.90045]
[1744599967291,4.89895,1633.0,1632.6,5.19030565]
[1744599967698,3.0,1632.9,1632.6,0.29019565]
[1744599968017,7.8994,1632.9,1632.6,0.29019565]
[1744599970221,4.89968,1632.8,1632.6,0.29019565]
[1744599970427,4.89985,1632.7,1632.6,0.29019565]
[1744599970722,4.89968,1632.8,1632.4,5.71225]
[1744599970937,4.89968,1632.8,1632.5,0.29321242]
[1744599971521,6.19256597,1633.1,1632.7,4.89975]
[1744599971726,4.29386597,1633.1,1632.8,0.29179126]
[1744599972018,7.8995,1632.9,1632.8,0.29179126]
[1744599972224,4.89958,1632.8,1632.5,4.90029]
[1744599972430,4.89958,1632.8,1632.4,6.283675]
[1744599972735,4.89958,1632.8,1632.4,6.283555]
[1744599972933,3.0,1632.9,1632.6,4.89995]
[1744599973101,0.829,1633.1,1632.8,4.89939]
[1744599973434,3.829,1633.1,1632.8,4.89939]
[1744599973731,12.60339,1633.2,1632.8,5.960471]
[1744599973935,11.8895,1633.3,1632.9,4.89913]
[1744599974131,3.0,1633.2,1633.0,4.89893]
[1744599974948,5.7195,1633.3,1632.9,4.89913]
[1744599975143,5.7195,1633.3,1632.9,5.9851021]
[1744599975359,4.89846,1633.2,1632.9,1.0859721]
[1744599975511,4.89846,1633.2,1632.8,4.89943]
[1744599975845,4.89846,1633.2,1632.9,4.89924]
[1744599976709,5.7195,1633.3,1632.9,4.89924]
[1744599977003,10.61775,1633.3,1632.9,4.89924]
[1744599977438,10.61775,1633.3,1632.9,4.89909]
[1744599977439,5.7195,1633.3,1632.9,4.89909]
[1744599977642,5.7195,1633.3,1632.9,5.388999]
[1744599977845,5.7195,1633.3,1633.0,4.89894]
[1744599978044,4.89852,1633.2,1632.9,0.489909]
[1744599978239,4.89852,1633.2,1632.8,4.89939]
[1744599978403,5.7195,1633.3,1633.0,0.26349905]
[1744599978611,4.8988,1633.1,1632.9,0.2640634]
[1744599978811,4.89847,1633.2,1632.8,4.89944]
[1744599979138,4.89847,1633.2,1632.9,0.26433643]
[1744599979343,4.89847,1633.2,1632.9,5.16354643]
[1744599979513,5.7195,1633.3,1632.9,10.06266643]
[1744599979843,3.0,1633.3,1633.0,5.72493]
[1744599980016,3.0,1633.3,1633.1,4.89863]
[1744599980342,3.0,1633.3,1633.2,0.26291651]
[1744599980809,3.0,1633.3,1633.1,4.89863]
[1744599981310,3.0,1633.3,1633.2,0.26220597]
[1744599981508,7.707,1633.4,1633.2,4.89822]
[1744599981709,3.0,1633.5,1633.3,0.26173275]
[1744599981910,5.657,1633.7,1633.3,5.15966275]
[1744599981911,10.55404,1633.7,1633.3,5.15966275]
[1744599982121,4.89717,1633.6,1633.3,5.15966275]
[1744599982539,3.0,1633.5,1633.3,5.15966275]
[1744599983662,3.0,1633.5,1633.3,10.05757275]
[1744599983855,3.7601,1633.7,1633.4,10.80112728]
[1744599984167,3.7601,1633.7,1633.5,0.26321888]
[1744599984634,3.0,1633.7,1633.5,0.26321888]
[1744599985441,7.89686,1633.7,1633.5,0.26321888]
[1744599985760,5.686836,1633.6,1633.5,0.26321888]
[1744599985973,6.446936,1633.6,1633.5,0.26321888]
[1744599986141,11.344326,1633.6,1633.2,4.89834]
[1744599986459,6.446936,1633.6,1633.2,4.89834]